bitfinex-derivatives/quotes_SOLF0:USTF0_20250228
["timestamp","ask_amount","ask_price","bid_price","bid_amount"]
[1740755285364,186.03797937,144.94,144.79,19.58]
[1740755285688,6.9032,144.93,144.82,6.9083]
[1740755285747,186.03797937,144.94,144.8,3.6595]
[1740755286036,7.1691,144.97,144.8,3.6595]
[1740755286235,1.17514782,144.96,144.8,3.6595]
[1740755286430,0.0531208,144.89,144.87,0.04460439]
[1740755286630,3.6561,145.05,144.86,19.56]
[1740755286836,20.73450554,145.04,144.86,19.56]
[1740755287137,19.56,145.04,144.86,19.56]
[1740755287332,19.56,145.04,144.86,240.86]
[1740755287528,3.6561,145.05,144.86,240.86]
[1740755287731,0.04822078,144.96,144.94,0.05140248]
[1740755287936,3.7071,145.06,144.94,0.05140248]
[1740755288161,389.86932929,145.07,144.93,19.56]
[1740755288529,389.86932929,145.07,144.94,7.3532]
[1740755289039,377.37817396,145.07,144.99,0.0514813]
[1740755289233,365.95017396,145.07,145.0,19.54]
[1740755289443,304.40392461,145.23,144.99,221.3514813]
[1740755289741,6.8981,145.04,144.92,221.3]
[1740755289931,19.54,145.07,144.92,416.3]
[1740755290131,10.7605,145.06,144.88,0.61559905]
[1740755290340,0.04393404,145.01,144.98,0.04611934]
[1740755290537,19.54,145.0,144.87,195.0]
[1740755290839,19.54,145.0,144.81,19.54]
[1740755291044,1.17482142,144.99,144.82,5.56031923]
[1740755291740,0.0459217,144.92,144.89,0.04651532]
[1740755292036,19.54,145.0,144.84,5.56031923]
[1740755292240,0.04718293,144.92,144.89,0.04820215]
[1740755292430,0.04718293,144.92,144.83,195.0]
[1740755292735,3.7126,144.95,144.89,0.04620002]
[1740755292940,0.04469804,144.89,144.82,5.55015312]
[1740755293235,0.04775642,144.87,144.84,0.04463045]
[1740755293442,19.52,144.93,144.8,6.9093]
[1740755293645,0.04371706,144.87,144.84,0.04631955]
[1740755293935,19.52,144.93,144.78,5.55758777]
[1740755293936,19.52,144.93,144.79,5.55758777]
[1740755294136,0.04457537,144.87,144.84,0.04485889]
[1740755294336,19.52,144.93,144.77,5.55758777]
[1740755294642,0.04590839,144.87,144.84,0.05092902]
[1740755294845,26.4236,144.93,144.77,5.55758777]
[1740755295049,0.04567034,144.87,144.84,0.0478615]
[1740755295240,19.52,144.93,144.77,5.55758777]
[1740755295541,0.04583923,144.87,144.84,0.04869759]
[1740755295742,19.52,144.93,144.77,5.56442184]
[1740755295989,0.04384351,144.87,144.84,0.05184472]
[1740755296243,19.52,144.93,144.79,5.56442184]
[1740755296437,0.04608435,144.87,144.84,0.04523154]
[1740755296640,3.7126,144.95,144.77,5.56442184]
[1740755296641,23.2326,144.95,144.77,5.56442184]
[1740755296942,0.04726304,144.87,144.84,0.04693991]
[1740755297143,23.2326,144.95,144.79,5.56442184]
[1740755297339,0.05058647,144.87,144.84,0.04913592]
[1740755297533,23.2326,144.95,144.77,5.56442184]
[1740755297740,0.04610776,144.87,144.84,0.04869937]
[1740755297941,23.2326,144.95,144.8,19.52]
[1740755298136,0.05069758,144.87,144.84,0.0499388]
[1740755298343,23.2326,144.95,144.76,19.52]
[1740755298546,0.04764907,144.87,144.77,5.63019347]
[1740755298853,19.52,144.89,144.78,5.63019347]
[1740755299044,0.04524632,144.83,144.81,0.04792452]
[1740755299241,19.52,144.89,144.81,0.04792452]
[1740755299436,0.0444998,144.83,144.71,5.62830054]
[1740755299647,7.3347,144.88,144.72,5.62830054]
[1740755299842,7.3347,144.88,144.73,5.63331505]
[1740755300046,7.3347,144.88,144.74,5.63059766]
[1740755300349,6.9076,144.84,144.73,6.9126]
[1740755300545,0.0444025,144.82,144.8,0.05293994]
[1740755300839,7.3347,144.88,144.8,0.05040497]
[1740755301041,0.05070803,144.82,144.8,0.05040497]
[1740755301259,19.5,144.83,144.73,195.0]
[1740755301447,19.5,144.83,144.68,240.56]
[1740755301649,3.7652,144.82,144.69,5.63131939]
[1740755301855,6.9094,144.8,144.69,17.7244]
[1740755302041,3.7652,144.82,144.69,10.81]
[1740755302544,0.05057702,144.77,144.74,0.05216568]
[1740755302744,19.5,144.76,144.69,10.81]
[1740755303440,3.7652,144.82,144.73,6.9126]
[1740755303646,3.7652,144.82,144.69,10.81]
[1740755303845,0.04488192,144.79,144.76,0.05026732]
[1740755304149,6.95508192,144.79,144.76,0.05026732]
[1740755304350,0.04488192,144.79,144.76,0.05026732]
[1740755305741,221.12,145.03,144.76,3.51026732]
[1740755305943,7.3545,144.99,144.77,5.63264235]
[1740755306145,1.17526076,144.98,144.78,5.63264235]
[1740755306342,1.17526076,144.98,144.79,5.63264235]
[1740755306544,3.5018,144.97,144.8,25.13264235]
[1740755306751,3.5018,144.97,144.81,5.63264235]
[1740755307052,0.04893997,144.9,144.87,0.04832373]
[1740755307443,7.3545,144.99,144.86,19.5]
[1740755307650,0.05273443,144.9,144.87,0.04949035]
[1740755307952,0.04914569,144.9,144.86,214.5]
[1740755308149,3.6065,145.02,144.87,15.20620729]
[1740755308455,221.12,145.1,144.88,15.1546728]
[1740755308652,1.17402966,145.09,144.89,15.1546728]
[1740755308851,1.17402966,145.08,144.9,236.3093728]
[1740755309045,6.896,145.08,144.91,15.1546728]
[1740755309252,0.04924498,145.0,144.98,0.04870139]
[1740755309651,6.8983,145.04,144.98,0.04870139]
[1740755309849,0.04835613,145.0,144.92,19.5]
[1740755310156,6.94825613,145.0,144.97,8.12175355]
[1740755310349,19.5,145.01,144.96,1e-08]
[1740755310557,0.05072042,145.0,144.85,0.0806]
[1740755310754,19.5,145.01,144.86,19.0190237]
[1740755310954,6.9003,144.99,144.87,19.0190237]
[1740755311154,6.9003,144.99,144.86,6.9064]
[1740755311361,19.5,145.01,144.86,6.9064]
[1740755311552,6.901,144.98,144.85,0.0806]
[1740755311860,0.04508525,144.95,144.92,0.04906458]
[1740755312254,19.52508525,144.95,144.92,0.04906458]
[1740755312649,22.96508525,144.95,144.81,28.30474245]
[1740755312854,19.52508525,144.95,144.81,28.30474245]
[1740755313160,6.9048,144.9,144.81,28.30474245]
[1740755313352,19.48,144.89,144.81,28.30474245]
[1740755313954,0.04435177,144.86,144.84,0.04857498]
[1740755314260,6.9008,144.99,144.87,6.906]
[1740755314459,1.17499092,144.98,144.87,6.906]
[1740755314658,3.6131,144.98,144.87,6.906]
[1740755315057,3.6131,144.98,144.81,195.0]
[1740755315258,3.6131,144.98,144.8,17.63002772]
[1740755315471,0.04963737,144.91,144.88,0.04599437]
[1740755315762,19.48,144.94,144.82,6.0264463]
[1740755315961,0.04862029,144.91,144.88,0.05108347]
[1740755316157,0.04862029,144.91,144.88,6.95628347]
[1740755316459,7.3145,144.98,144.88,0.04896999]
[1740755316765,7.3145,144.98,144.82,17.63002772]
[1740755316950,7.3145,144.98,144.92,0.05059387]
[1740755317158,0.04811956,144.94,144.92,0.05059387]
[1740755317356,0.04811956,144.94,144.83,17.63002772]
[1740755317563,0.04811956,144.94,144.92,0.04366382]
[1740755317757,7.3145,144.98,144.83,15.68238875]
[1740755317955,1.17494561,144.97,144.83,15.68238875]
[1740755318374,1.17494561,144.97,144.75,232.7150349]
[1740755318375,1.17494561,144.97,144.81,29.13141756]
[1740755318560,7.3145,144.98,144.82,17.66247678]
[1740755318761,7.3145,144.98,144.83,17.66247678]
[1740755319056,1.577e-05,144.91,144.9,6.9046]
[1740755319262,4.77359971,145.03,144.89,0.0508999]
[1740755319463,1.17459971,145.02,144.87,19.48]
[1740755319659,1.17459971,145.02,144.91,6.904]
[1740755320264,1.17459971,145.02,144.92,9.39952132]
[1740755320467,1.17459971,145.02,144.87,19.48]
[1740755320468,0.05001901,144.98,144.95,0.04606963]
[1740755320658,0.05001901,144.98,144.96,9.39952132]
[1740755320859,0.05001901,144.98,144.95,0.04606963]
[1740755321565,0.05001901,144.98,144.96,9.54122518]
[1740755321760,0.05001901,144.98,144.97,9.54163302]
[1740755322157,3.49001901,144.98,144.96,29.43558948]
[1740755322365,3.49001901,144.98,144.97,5.97920823]
[1740755322558,0.05001901,144.98,144.97,5.75052317]
[1740755322970,220.96,145.13,144.97,5.75052317]
[1740755323162,3.7393,145.09,144.98,5.75052317]
[1740755323368,3.7393,145.09,144.99,5.75052317]
[1740755323558,3.7393,145.09,145.0,5.75052317]
[1740755323867,3.7393,145.09,145.01,5.75052317]
[1740755324067,3.7393,145.09,145.03,8.22684835]
[1740755324268,0.04670732,145.06,145.04,5.75052317]
[1740755324465,0.04670732,145.06,145.05,5.75052317]
[1740755324768,0.04670732,145.06,145.05,22.40785118]
[1740755325367,0.04670732,145.06,145.05,35.2708378]
[1740755325766,3.48670732,145.06,145.05,29.5656378]
[1740755326278,3.48670732,145.06,145.05,6.45198779]
[1740755326469,0.04670732,145.06,145.05,6.45198779]
[1740755326865,0.04670732,145.06,145.05,0.04532317]
[1740755327671,3.5741,145.1,145.05,18.58206765]
[1740755327880,3.5741,145.1,145.06,18.53674448]
[1740755328067,3.5741,145.1,144.99,8.17993606]
[1740755328371,19.44,145.11,145.0,18.54119539]
[1740755328568,240.4,145.13,145.01,18.54119539]
[1740755328768,240.4,145.13,145.04,0.05039755]
[1740755328769,1.17366881,145.12,145.04,0.05039755]
[1740755328975,0.04972215,145.06,145.05,32.26854738]
[1740755329172,147.23649336,145.13,145.05,32.26854738]
[1740755329368,147.23649336,145.13,145.06,20.85634738]
[1740755329369,6.8965,145.07,145.06,20.85634738]
[1740755329567,19.44,145.12,145.06,9.87574738]
[1740755329773,1.17402097,145.11,145.05,15.86498894]
[1740755330080,6.897,145.06,145.05,15.86498894]
[1740755330271,26.337,145.06,145.05,1e-08]
[1740755330477,6.8974,145.05,144.96,37.7150349]
[1740755330676,19.44,145.06,144.96,37.7150349]
[1740755331576,1.37835975,145.1,144.96,37.7150349]
[1740755331779,1.37835975,145.1,145.0,0.04410249]
[1740755331780,0.05024845,145.02,145.0,0.04410249]
[1740755332280,0.04545909,145.02,145.0,0.05010945]
[1740755333281,3.48545909,145.02,145.0,0.05010945]
[1740755333679,0.04545909,145.02,145.0,0.05010945]
[1740755333883,6.94445909,145.02,145.0,0.05010945]
[1740755334078,0.04545909,145.02,145.0,0.05010945]
[1740755334478,3.48545909,145.02,145.0,0.05010945]
[1740755334678,224.34545909,145.02,145.0,0.05010945]
[1740755334879,1.37921522,145.01,144.86,3.5801]
[1740755335280,1.37921522,145.01,144.84,9.41029245]
[1740755335981,0.05102589,144.94,144.91,0.04938864]
[1740755336288,19.44,144.93,144.85,6.9066]
[1740755336488,19.4889935,144.94,144.91,0.0479204]
[1740755336697,19.44,144.94,144.85,6.9066]
[1740755336897,19.48752853,144.94,144.83,7.045]
[1740755337083,0.04463754,144.91,144.88,0.05114485]
[1740755337486,6.9051,144.89,144.88,0.05114485]
[1740755337685,0.04463754,144.91,144.88,0.05114485]
[1740755337983,0.04463754,144.91,144.89,5.94730299]
[1740755338183,0.04463754,144.91,144.9,5.95002851]
[1740755338983,10.40873754,144.91,144.9,5.95002851]
[1740755339293,3.50463754,144.91,144.88,0.05114485]
[1740755339487,0.04463754,144.91,144.89,5.9538733]
[1740755339699,0.04463754,144.91,144.9,5.95251166]
[1740755339886,20.81921522,145.01,144.9,5.95251166]
[1740755340082,20.81921522,145.01,144.91,5.95251166]
[1740755340287,20.81921522,145.01,144.92,5.95251166]
[1740755340491,20.81921522,145.01,144.93,5.95251166]
[1740755340687,220.86,145.02,144.94,5.95251166]
[1740755340892,6.8994,145.01,144.95,5.95251166]
[1740755341186,0.04721136,144.99,144.97,0.04363603]
[1740755341386,0.04721136,144.99,144.98,5.95251166]
[1740755341583,220.86,145.02,144.98,5.95251166]
[1740755341783,0.04812725,145.0,144.99,5.95251166]
[1740755342387,0.04812725,145.0,144.97,0.04486753]
[1740755342588,0.04812725,145.0,144.98,5.94123107]
[1740755342778,0.04812725,145.0,144.97,0.04486753]
[1740755342979,0.04812725,145.0,144.89,3.6124]
[1740755342980,6.903,144.94,144.89,3.6124]
[1740755343178,19.44,144.93,144.85,7.2265]
[1740755343387,19.42,144.92,144.85,7.2265]
[1740755343794,19.42,144.92,144.85,3.7791]
[1740755344289,0.04779399,144.9,144.87,0.0481023]
[1740755344886,6.9054,144.89,144.87,0.0481023]
[1740755345085,0.04779399,144.9,144.87,0.0481023]
[1740755346591,0.04779399,144.9,144.87,6.9540023]
[1740755346781,19.42,144.92,144.87,0.0481023]
[1740755346984,19.42,144.97,144.87,0.0481023]
[1740755347184,6.9018,144.96,144.87,0.0481023]
[1740755347385,19.42,144.97,144.81,198.4485]
[1740755348092,0.05034397,144.9,144.88,0.05031174]
[1740755348292,19.42,144.89,144.88,0.05031174]
[1740755349195,22.88,144.89,144.81,3.4485]
[1740755349385,19.42,144.89,144.81,3.4485]
[1740755349992,19.42,144.89,144.81,10.3573]
[1740755350192,19.42,144.89,144.81,3.4485]
[1740755350398,0.04460307,144.86,144.84,0.04934799]
[1740755351096,0.04460307,144.86,144.81,3.4485]
[1740755351097,3.50460307,144.86,144.8,10.8]
[1740755351293,0.04460307,144.86,144.8,10.8]
[1740755352404,3.50460307,144.86,144.8,7.469e-05]
[1740755352582,2.55669891,144.85,144.8,7.469e-05]
[1740755352793,6.9116,144.76,144.69,13.19789245]
[1740755352985,2.55679424,144.84,144.69,13.19789245]
[1740755352986,19.42,144.75,144.69,13.19789245]
[1740755353189,19.42,144.74,144.69,13.19789245]
[1740755353594,0.05308942,144.73,144.7,0.0454621]
[1740755354188,19.42,144.74,144.7,0.0454621]
[1740755355394,0.04827858,144.73,144.7,0.0454621]
[1740755355895,3.50827858,144.73,144.61,3.4311]
[1740755356097,6.9128,144.73,144.61,3.4311]
[1740755357196,0.04903138,144.68,144.66,0.04812906]
[1740755357391,19.44,144.67,144.66,0.04812906]
[1740755357590,19.44,144.67,144.61,3.4311]
[1740755357794,19.44,144.67,144.65,0.04784651]
[1740755357993,22.9,144.67,144.58,6.9821]
[1740755358199,19.44,144.67,144.58,6.9821]
[1740755359199,0.05220015,144.64,144.61,0.04664854]
[1740755360297,0.05220015,144.64,144.61,6.96464854]
[1740755360494,0.05220015,144.64,144.61,0.04664854]
[1740755360797,19.44,144.68,144.61,0.04664854]
[1740755360988,19.44,144.68,144.58,6.9821]
[1740755361499,221.24,144.81,144.58,228.2221]
[1740755361695,27.52591761,144.8,144.72,6.9127]
[1740755361998,0.05026759,144.77,144.62,19.44]
[1740755362196,19.44,144.8,144.75,0.04522262]
[1740755362395,0.04768492,144.71,144.62,19.44]
[1740755362694,19.44,144.79,144.63,5.91957365]
[1740755363110,19.44,144.8,144.72,6.9128]
[1740755363394,19.44,144.8,144.73,3.5424]
[1740755363612,19.44,144.8,144.75,6.9114]
[1740755363790,0.04713078,144.78,144.75,0.04893561]
[1740755365505,6.9111,144.77,144.75,0.04893561]
[1740755365694,0.04713078,144.78,144.75,0.04893561]
[1740755366902,20.77,144.77,144.52,195.0]
[1740755367098,23.32825411,144.76,144.53,17.7114]
[1740755367299,2.55834956,144.75,144.53,17.7114]
[1740755367502,243.23844502,144.74,144.53,10.7895]
[1740755367706,1.17665699,144.73,144.53,10.7895]
[1740755367897,6.9138,144.71,144.53,10.7895]
[1740755368098,0.05081271,144.64,144.62,0.04599725]
[1740755368401,19.42,144.66,144.53,205.7895]
[1740755368702,19.42,144.66,144.53,17.7117]
[1740755368893,0.04735183,144.61,144.58,0.05087171]
[1740755371307,19.42,144.66,144.58,0.05087171]
[1740755371810,6.917,144.65,144.58,0.05087171]
[1740755371999,19.42,144.66,144.58,0.05087171]
[1740755372400,6.9171,144.64,144.58,0.05087171]
[1740755372602,0.04824945,144.63,144.58,0.05087171]
[1740755373003,222.64178803,144.74,144.58,0.05087171]
[1740755373204,19.42,144.73,144.53,205.7895]
[1740755373405,6.9137,144.71,144.53,205.7895]
[1740755373612,19.42,144.73,144.6,6.9186]
[1740755373809,19.42,144.73,144.57,19.42]
[1740755374002,6.9161,144.66,144.57,19.42]
[1740755374205,0.05295901,144.66,144.64,0.05039117]
[1740755374406,0.05295901,144.66,144.57,214.42]
[1740755374407,19.42,144.73,144.57,214.42]
[1740755374610,0.04618843,144.66,144.64,0.0530686]
[1740755374909,19.42,144.73,144.58,6.9198]
[1740755375109,0.04727161,144.66,144.64,0.04774987]
[1740755375303,19.42,144.65,144.64,0.04774987]
[1740755375510,19.42,144.65,144.53,7.3224]
[1740755375718,19.42,144.65,144.63,0.05030787]
[1740755375900,19.42,144.65,144.53,202.3224]
[1740755376100,0.05298576,144.65,144.63,0.04535451]
[1740755376306,19.42,144.7,144.53,202.3224]
[1740755376511,0.04376225,144.65,144.63,0.04953199]
[1740755376704,19.42,144.7,144.53,202.3224]
[1740755376904,0.05105692,144.65,144.63,0.05064517]
[1740755377112,19.42,144.7,144.54,15.44571262]
[1740755377304,3.753,144.69,144.63,0.04651575]
[1740755377504,0.04474445,144.67,144.63,0.04651575]
[1740755379207,6.917,144.64,144.63,0.04651575]
[1740755379412,19.42,144.64,144.63,0.04651575]
[1740755379811,19.42,144.64,144.53,7.3224]
[1740755380010,3.753,144.63,144.53,7.3224]
[1740755380503,3.753,144.63,144.54,6.9213]
[1740755380700,3.753,144.63,144.53,7.3224]
[1740755380905,0.04412478,144.6,144.57,0.04969892]
[1740755383111,19.42,144.68,144.57,0.04969892]
[1740755383309,3.8148,144.71,144.62,6.9177]
[1740755383505,19.42,144.7,144.54,198.6143]
[1740755383811,19.42,144.7,144.54,3.6143]
[1740755384009,20.80217,144.7,144.55,5.88875201]
[1740755384212,0.04440812,144.63,144.61,0.0450241]
[1740755384412,19.42,144.63,144.55,5.88875201]
[1740755384713,19.46635648,144.63,144.55,5.88875201]
[1740755384915,19.46635648,144.63,144.58,0.05162197]
[1740755385122,19.42,144.63,144.58,0.05162197]
[1740755385318,0.04764543,144.62,144.58,0.05162197]
[1740755388518,0.04764543,144.62,144.59,6.9191]
[1740755389316,0.04764543,144.62,144.58,0.05162197]
[1740755389915,0.04764543,144.62,144.6,6.9188]
[1740755391016,0.04764543,144.62,144.61,6.9184]
[1740755393019,19.4,144.67,144.58,0.05162197]
[1740755393222,19.4,144.67,144.63,6.9172]
[1740755393418,19.4,144.67,144.56,9.49723264]
[1740755394015,19.4,144.67,144.63,6.9172]
[1740755394413,0.04789923,144.66,144.64,0.04428187]
[1740755394722,19.4,144.72,144.57,210.44051151]
[1740755395124,6.9146,144.69,144.62,6.9176]
[1740755395317,19.4,144.72,144.58,15.44051151]
[1740755395514,1.34639211,144.71,144.58,15.44051151]
[1740755395721,0.04888773,144.66,144.64,0.04840413]
[1740755395927,19.4,144.65,144.58,5.94327887]
[1740755396123,19.4,144.65,144.58,6.9196]
[1740755396518,19.4,144.65,144.56,37.7150349]
[1740755396722,1.1777801,144.64,144.56,37.7150349]
[1740755397019,0.04493085,144.61,144.59,0.04469328]
[1740755398826,0.04493085,144.61,144.56,37.7150349]
[1740755399520,1.22271095,144.61,144.53,10.4552]
[1740755399931,1.22271095,144.61,144.56,0.0483289]
[1740755400636,0.04493085,144.61,144.56,0.0483289]
[1740755401618,19.4,144.66,144.56,0.0483289]
[1740755401823,414.38957937,144.76,144.67,6.9154]
[1740755402020,1.17703021,144.74,144.61,19.4]
[1740755402218,186.03797937,144.77,144.62,3.4863]
[1740755402431,186.03797937,144.77,144.62,198.4863]
[1740755402624,0.04594566,144.7,144.67,0.05010033]
[1740755402927,0.04594566,144.7,144.69,6.9146]
[1740755403123,0.04594566,144.7,144.67,0.05010033]
[1740755403723,0.04594566,144.7,144.57,3.4863]
[1740755403927,6.9157,144.67,144.57,3.4863]
[1740755404120,3.629,144.7,144.57,3.4863]
[1740755404731,221.44,144.75,144.58,5.80935897]
[1740755404925,19.38,144.79,144.58,200.80935897]
[1740755405163,19.38,144.79,144.58,329.80935897]
[1740755405335,19.38,144.8,144.58,329.80935897]
[1740755405533,3.7097,144.82,144.58,365.2238246]
[1740755405732,335.80392461,144.83,144.59,1.38322152]
[1740755405733,114.40392461,144.83,144.59,1.38322152]
[1740755405935,114.40392461,144.83,144.6,20.75]
[1740755406236,114.40392461,144.83,144.73,6.9123]
[1740755406538,19.38,144.85,144.74,10.9593]
[1740755406732,19.38,144.85,144.74,17.8715]
[1740755407032,19.38,144.85,144.74,10.9593]
[1740755407233,0.04441086,144.81,144.78,0.04655173]
[1740755407424,3.7097,144.89,144.78,0.04655173]
[1740755407631,114.40392461,144.9,144.78,221.32]
[1740755407830,97.22892461,144.9,144.78,221.32]
[1740755408228,97.22892461,144.9,144.78,545.32]
[1740755408430,63.18412461,144.9,144.89,6.9051]
[1740755408932,40.88292461,144.9,144.89,10.3651]
[1740755409136,186.03797937,144.92,144.91,6.9041]
[1740755409428,186.03797937,145.12,144.91,195.0]
[1740755409635,14.1474,145.06,144.95,6.9018]
[1740755409833,7.2503,145.06,144.93,19.38]
[1740755410227,0.03654918,144.99,144.96,0.04961287]
[1740755411525,0.03654918,144.99,144.96,6.95131287]
[1740755411733,4.918e-05,144.99,144.96,3.48961287]
[1740755412129,4.918e-05,144.99,144.98,6.9008]
[1740755412533,4.918e-05,144.99,144.98,10.3408]
[1740755413034,4.918e-05,144.99,144.96,0.04961287]
[1740755414027,4.918e-05,144.99,144.98,6.9008]
[1740755414438,4.918e-05,144.99,144.98,10.3408]
[1740755414832,4.4166302,145.02,145.01,6.8993]
[1740755415030,23.0693,145.13,144.99,19.34]
[1740755415232,6.8956,145.09,145.02,6.8988]
[1740755415435,23.0693,145.13,144.99,214.34]
[1740755415932,23.0693,145.13,145.04,0.05242644]
[1740755416827,3.7293,145.13,145.06,6.897]
[1740755417133,3.7293,145.13,144.99,19.34]
[1740755417433,3.7293,145.13,145.08,0.04658983]
[1740755417658,3.7293,145.13,144.99,19.34]
[1740755417833,3.7293,145.13,145.09,0.050729]
[1740755418033,3.7293,145.13,144.99,19.34]
[1740755418533,6.8946,145.12,145.05,0.04589715]
[1740755418746,3.7293,145.13,145.05,0.04589715]
[1740755419635,1.17352034,145.12,145.05,0.04589715]
[1740755419832,3.7293,145.13,145.05,0.04589715]
[1740755420039,6.8954,145.1,145.05,0.04589715]
[1740755420236,19.32,145.1,145.05,0.04589715]
[1740755420532,19.32,145.1,144.98,220.94]
[1740755420533,6.8976,145.05,144.91,220.86]
[1740755420737,0.04589715,145.09,144.91,220.86]
[1740755420931,19.32,145.1,144.91,220.86]
[1740755421639,0.04402165,145.02,144.99,0.04947563]
[1740755421834,19.32,145.1,144.91,220.86]
[1740755422141,0.04436832,144.98,144.95,0.05241331]
[1740755422338,0.04465643,144.98,144.95,0.05288136]
[1740755422750,0.04465643,144.98,144.97,6.9012]
[1740755423036,19.32,145.1,144.96,19.32]
[1740755423231,19.32,145.1,145.02,6.8984]
[1740755423636,19.32,145.1,144.96,19.32]
[1740755423831,3.7293,145.13,144.96,19.32]
[1740755424030,3.7293,145.13,145.03,0.04988982]
[1740755424233,6.8942,145.12,145.02,6.8988]
[1740755424437,6.8942,145.12,145.07,0.04894375]
[1740755424654,3.7293,145.13,145.07,0.04894375]
[1740755426647,10.6231,145.13,145.07,0.04894375]
[1740755426839,3.7293,145.13,145.07,0.04894375]
[1740755427242,6.8955,145.09,144.98,6.9004]
[1740755427439,19.3,145.08,144.93,19.3]
[1740755427635,3.6099,145.07,144.93,19.3]
[1740755427838,3.6099,145.07,144.87,28.30474245]
[1740755428338,0.04859335,144.99,144.96,0.05271786]
[1740755428533,19.34859335,144.99,144.88,37.7150349]
[1740755428734,19.35002014,144.99,144.96,0.04360015]
[1740755428940,19.35002014,144.99,144.95,6.902]
[1740755429141,0.05002014,144.99,144.88,37.7150349]
[1740755429342,3.6475,145.03,144.96,0.04671189]
[1740755429539,3.6475,145.03,144.88,37.7150349]
[1740755429746,0.04687238,145.01,144.88,37.7150349]
[1740755429942,3.6475,145.03,144.88,37.7150349]
[1740755430250,0.05018447,144.96,144.94,0.05199003]
[1740755430440,0.05018447,144.96,144.88,37.7150349]
[1740755430641,8.659e-05,144.93,144.91,0.04385986]
[1740755430836,19.3,145.02,144.91,0.04385986]
[1740755431043,3.6475,145.03,144.98,6.9008]
[1740755431243,3.6475,145.03,144.88,37.7150349]
[1740755431643,3.6475,145.03,144.95,6.9021]
[1740755431837,3.6475,145.03,144.88,37.7150349]
[1740755432236,3.6475,145.03,144.94,0.04649907]
[1740755432443,3.779,145.02,144.94,0.04649907]
[1740755432649,6.8998,145.0,144.97,0.05221458]
[1740755432841,19.3,145.01,144.86,19.3]
[1740755433036,19.3,145.01,144.97,0.04812552]
[1740755433245,26.1997,145.01,144.86,19.3]
[1740755433547,19.3,145.01,144.82,220.8]
[1740755433949,26.1993,145.01,144.82,220.8]
[1740755434152,19.3,145.01,144.82,220.8]
[1740755434746,0.0470998,144.93,144.9,0.05203568]
[1740755434947,6.9008,144.98,144.9,6.9044]
[1740755435244,0.04848145,144.93,144.9,0.05066831]
[1740755435756,4.475e-05,144.93,144.9,0.04624395]
[1740755435947,4.475e-05,144.93,144.9,3.50624395]
[1740755436150,4.475e-05,144.93,144.92,6.9035]
[1740755436363,4.475e-05,144.93,144.92,10.3635]
[1740755436548,7.0608,145.07,144.92,3.46]
[1740755436848,7.0608,145.07,145.03,6.8983]
[1740755437259,7.0608,145.07,144.95,19.28]
[1740755437753,7.0608,145.07,145.0,0.0442201]
[1740755438251,7.0608,145.07,145.05,6.8973]
[1740755438647,7.0608,145.07,145.05,6.94986087]
[1740755438847,7.0608,145.07,145.05,0.05256087]
[1740755439296,7.0608,145.07,144.96,9.41029245]
[1740755439455,3.7124,145.08,145.03,6.8983]
[1740755439752,3.7124,145.08,144.96,9.41029245]
[1740755439948,3.7124,145.08,145.01,6.899]
[1740755440347,0.04657553,145.06,145.03,0.04558298]
[1740755441050,0.04657553,145.06,145.05,6.8974]
[1740755441555,0.04657553,145.06,145.03,0.04558298]
[1740755443447,0.04657553,145.06,145.02,37.7150349]
[1740755443950,0.04657553,145.06,145.02,26.2859349]
[1740755444154,0.04657553,145.06,145.02,20.5714349]
[1740755444358,0.04657553,145.06,145.02,9.1718349]
[1740755444648,0.04657553,145.06,145.03,0.04495876]
[1740755445183,0.04657553,145.06,145.04,6.8979]
[1740755445356,0.04657553,145.06,145.03,0.04495876]
[1740755446556,0.04657553,145.06,145.02,3.4548349]
[1740755446953,6.94367553,145.06,145.02,3.4548349]
[1740755447149,0.04657553,145.06,145.02,3.4548349]
[1740755447367,0.04657553,145.06,144.97,6.9011]
[1740755447557,6.8977,145.05,144.97,6.9011]
[1740755447757,6.8977,145.05,144.95,75.47931321]
[1740755447758,0.04877645,145.03,145.0,0.04884336]
[1740755448652,0.04877645,145.03,144.95,75.47931321]